fUSD/lending_fUSD_20241121
["ID","MTS","AMOUNT","RATE_DAILY","PERIOD"]
[342873414,1732191066943,-500.0,0.00041643,18]
[342873415,1732191066952,-500.0,0.00041643,18]
[342873416,1732191066961,-500.0,0.00041643,18]
[342873417,1732191066971,-500.0,0.00041643,14]
[342873418,1732191066981,-500.0,0.00041643,18]
[342873419,1732191066991,-500.0,0.00041643,18]
[342873420,1732191067000,-500.0,0.00041643,18]
[342873421,1732191067010,-500.0,0.00041643,18]
[342873422,1732191067019,-1434.66,0.00041643,18]
[342873423,1732191067029,-500.0,0.00041643,18]
[342873424,1732191067039,-500.0,0.00041643,18]
[342873425,1732191067049,-540.98,0.00041643,18]
[342873426,1732191067059,-500.0,0.00041643,18]
[342873427,1732191067068,-500.0,0.00041643,18]
[342873428,1732191067078,-500.0,0.00041643,18]
[342873429,1732191067087,-500.0,0.00041643,18]
[342873430,1732191067098,-500.0,0.00041643,18]
[342873431,1732191067108,-500.0,0.00041643,18]
[342873432,1732191067118,-500.0,0.00041643,18]
[342873433,1732191067128,-500.0,0.00041643,18]
[342873434,1732191067137,-500.0,0.00041643,18]
[342873435,1732191067147,-1122.34,0.00041643,18]
[342873436,1732191067156,-656.51,0.00041643,18]
[342873437,1732191067166,-1642.03,0.00041643,18]
[342873438,1732191067175,-2088.72,0.00041643,18]
[342873439,1732191067184,-572.06,0.00041643,18]
[342873440,1732191067194,-500.0,0.00041643,18]
[342873441,1732191067204,-756.22,0.00041643,18]
[342873442,1732191067214,-816.99,0.00041643,18]
[342873443,1732191067224,-500.0,0.00041643,18]
[342873444,1732191067234,-500.0,0.00041643,18]
[342873445,1732191067244,-1007.64,0.00041643,18]
[342873446,1732191067253,-1147.31,0.00041643,18]
[342873447,1732191067264,-1155.41,0.00041643,18]
[342873448,1732191067275,-500.0,0.00041643,18]
[342873449,1732191067285,-500.0,0.00041643,18]
[342873450,1732191067295,-500.0,0.00041643,2]
[342873451,1732191067308,-2132.33,0.00041643,18]
[342873452,1732191067318,-1637.39,0.00041643,18]
[342873453,1732191067327,-2190.36,0.00041643,18]
[342873454,1732191067337,-500.0,0.00041643,18]
[342873455,1732191067350,-500.0,0.00041643,18]
[342873456,1732191067359,-621.75,0.00041643,18]
[342873457,1732191067369,-500.0,0.00041643,18]
[342873458,1732191067379,-500.0,0.00041643,18]
[342873459,1732191067390,-500.0,0.00041643,18]
[342873460,1732191067399,-1067.79,0.00041643,18]
[342873461,1732191067409,-500.0,0.00041643,18]
[342873462,1732191067419,-800.73,0.00041643,18]
[342873463,1732191067428,-779.55,0.00041643,18]
[342873464,1732191067438,-500.0,0.00041643,18]
[342873465,1732191067447,-500.0,0.00041643,18]
[342873466,1732191067457,-500.0,0.00041643,18]
[342873467,1732191067467,-500.0,0.00041643,18]
[342873468,1732191067477,-1510.88,0.00041643,18]
[342873469,1732191067486,-500.0,0.00041643,18]
[342873470,1732191067495,-500.0,0.00041643,18]
[342873471,1732191067504,-500.0,0.00041643,18]
[342873472,1732191067514,-500.0,0.00041643,18]
[342873473,1732191067524,-500.0,0.00041643,18]
[342873474,1732191067534,-688.65,0.00041643,18]
[342873475,1732191067544,-515.93,0.00041643,18]
[342873476,1732191067554,-1167.35,0.00041643,18]
[342873477,1732191067563,-500.0,0.00041643,18]
[342873478,1732191067573,-500.0,0.00041643,18]
[342873479,1732191067583,-534.06931364,0.00041643,18]
[342873480,1732191067593,-500.0,0.00041643,18]
[342873481,1732191067605,-892.68,0.00041643,18]
[342873482,1732191067615,-899.73,0.00041643,18]
[342873483,1732191067625,-500.0,0.00041643,18]
[342873484,1732191067635,-500.0,0.00041643,18]
[342873485,1732191067644,-500.0,0.00041643,18]
[342873486,1732191067654,-500.0,0.00041643,18]
[342873487,1732191067663,-301.98230484,0.00041643,18]
[342873488,1732191067673,-500.0,0.00041643,18]
[342873489,1732191067683,-500.0,0.00041643,18]
[342873490,1732191067692,-500.0,0.00041643,18]
[342873491,1732191067701,-500.0,0.00041643,18]
[342873492,1732191067711,-1143.42,0.00041643,18]
[342873493,1732191067721,-942.99,0.00041643,18]
[342873494,1732191067731,-500.0,0.00041643,18]
[342873495,1732191067741,-500.0,0.00041643,18]
[342873496,1732191067751,-500.0,0.00041643,18]
[342873497,1732191067761,-1167.62,0.00041643,18]
[342873498,1732191067771,-776.03,0.00041643,18]
[342873499,1732191067781,-500.0,0.00041643,18]
[342873500,1732191067791,-1390.22,0.00041643,18]
[342873501,1732191067801,-500.0,0.00041643,18]
[342873502,1732191067811,-500.0,0.00041643,18]
[342873503,1732191067821,-500.0,0.00041643,18]
[342873504,1732191067832,-500.0,0.00041643,18]
[342873505,1732191067844,-1195.76,0.00041643,18]
[342873506,1732191067856,-500.0,0.00041643,18]
[342873507,1732191067866,-1135.91,0.00041643,18]
[342873508,1732191067876,-500.0,0.00041643,18]
[342873509,1732191067886,-2534.86,0.00041643,18]
[342873510,1732191067895,-1443.47,0.00041643,18]
[342873511,1732191067905,-2365.21,0.00041643,18]
[342873512,1732191067915,-719.77,0.00041643,18]
[342873513,1732191067925,-500.0,0.00041643,18]
[342873514,1732191067936,-500.0,0.00041643,18]
[342873515,1732191067946,-500.0,0.00041643,18]
[342873516,1732191067955,-659.94,0.00041643,18]
[342873517,1732191067967,-500.0,0.00041643,18]
[342873518,1732191067977,-2846.0,0.00041643,18]
[342873519,1732191067987,-500.0,0.00041643,18]
[342873520,1732191067996,-848.82,0.00041643,18]
[342873521,1732191068006,-1350.76,0.00041643,18]
[342873522,1732191068017,-500.0,0.00041643,18]
[342873523,1732191068026,-500.0,0.00041643,18]
[342873524,1732191068036,-3570.43,0.00041643,18]
[342873525,1732191068046,-500.0,0.00041643,18]
[342873526,1732191068056,-500.0,0.00041643,18]
[342873527,1732191068066,-500.0,0.00041643,18]
[342873528,1732191068076,-500.0,0.00041643,18]
[342873529,1732191068085,-268.5226739,0.00041643,18]
[342873530,1732191068095,-500.0,0.00041643,18]
[342873531,1732191068400,-500.0,0.00041643,18]
[342873532,1732191068468,-570.5,0.00041643,18]
[342873533,1732191068478,-500.0,0.00041643,18]
[342873534,1732191068487,-500.0,0.00041643,18]
[342873535,1732191068497,-500.0,0.00041643,18]
[342873536,1732191068506,-500.0,0.00041643,18]
[342873537,1732191068515,-500.0,0.00041643,18]
[342873538,1732191068525,-613.58,0.00041643,18]
[342873539,1732191068534,-700.0,0.00041643,18]
[342873540,1732191068544,-1634.27,0.00041643,18]
[342873541,1732191068554,-840.55,0.00041643,18]
[342873542,1732191068564,-637.18,0.00041643,18]
[342873543,1732191068574,-150.0,0.00041643,18]
[342873544,1732191068584,-500.0,0.00041643,18]
[342873545,1732191068593,-500.0,0.00041643,18]
[342873546,1732191068605,-500.0,0.00041643,18]
[342873547,1732191068615,-500.0,0.00041643,18]
[342873548,1732191068625,-1964.01,0.00041643,18]
[342873549,1732191068635,-562.7,0.00041643,18]
[342873550,1732191068645,-1013.77,0.00041643,18]
[342873551,1732191068655,-500.0,0.00041643,18]
[342873552,1732191068665,-500.0,0.00041643,18]
[342873553,1732191068676,-500.0,0.00041643,18]
[342873554,1732191068685,-1139.66,0.00041643,18]
[342873555,1732191068695,-500.0,0.00041643,18]
[342873556,1732191068705,-500.0,0.00041643,18]
[342873557,1732191068715,-2261.49,0.00041643,18]
[342873558,1732191068724,-500.0,0.00041643,18]
[342873559,1732191068734,-1306.54,0.00041643,18]
[342873560,1732191068743,-957.43,0.00041643,18]
[342873561,1732191068753,-640.58,0.00041643,18]
[342873562,1732191068762,-1454.26,0.00041643,18]
[342873563,1732191068772,-542.93,0.00041643,18]
[342873564,1732191068782,-678.92,0.00041643,18]
[342873565,1732191068792,-500.0,0.00041643,18]
[342873566,1732191068802,-692.52,0.00041643,18]
[342873567,1732191068813,-500.0,0.00041643,18]
[342873568,1732191068823,-500.0,0.00041643,18]
[342873569,1732191068833,-863.92,0.00041643,18]
[342873570,1732191068843,-997.97,0.00041643,18]
[342873571,1732191068856,-500.0,0.00041643,18]
[342873572,1732191068866,-500.0,0.00041643,18]
[342873573,1732191068875,-506.81,0.00041643,18]
[342873574,1732191068885,-415.35507663,0.00041643,18]
[342873575,1732191068894,-500.0,0.00041643,18]
[342873576,1732191068904,-500.0,0.00041643,18]
[342873577,1732191068913,-500.0,0.00041643,18]
[342873578,1732191068923,-2737.64,0.00041643,18]
[342873579,1732191068933,-500.0,0.00041643,18]
[342873580,1732191068943,-500.0,0.00041643,18]
[342873581,1732191068952,-500.0,0.00041643,18]
[342873582,1732191068962,-500.0,0.00041643,18]
[342873583,1732191068972,-545.4,0.00041643,18]
[342873584,1732191068982,-721.18,0.00041643,18]
[342873585,1732191068991,-500.0,0.00041643,18]
[342873586,1732191069001,-1046.13,0.00041643,18]
[342873587,1732191069010,-500.0,0.00041643,18]
[342873588,1732191069020,-2737.41,0.00041643,18]
[342873589,1732191069029,-500.0,0.00041643,18]
[342873590,1732191069039,-500.0,0.00041643,18]
[342873591,1732191069049,-744.91,0.00041643,18]
[342873592,1732191069058,-500.0,0.00041643,18]
[342873593,1732191069068,-500.0,0.00041643,18]
[342873594,1732191069077,-778.58,0.00041643,18]
[342873595,1732191069087,-500.0,0.00041643,18]
[342873596,1732191069096,-1985.1,0.00041643,18]
[342873597,1732191069107,-500.0,0.00041643,18]
[342873598,1732191069116,-876.23,0.00041643,18]
[342873599,1732191069126,-2604.62,0.00041643,18]
[342873600,1732191069135,-500.0,0.00041643,18]
[342873601,1732191069145,-680.01,0.00041643,18]
[342873602,1732191069155,-500.0,0.00041643,18]
[342873603,1732191069164,-500.0,0.00041643,18]
[342873604,1732191069173,-500.0,0.00041643,18]
[342873605,1732191069183,-2317.16,0.00041643,18]
[342873606,1732191069192,-500.0,0.00041643,18]
[342873607,1732191069201,-714.15,0.00041643,18]
[342873608,1732191069211,-2293.79,0.00041643,7]
[342873609,1732191069220,-1046.37,0.00041643,18]
[342873610,1732191069230,-593.65,0.00041643,18]
[342873611,1732191069239,-500.0,0.00041643,18]
[342873612,1732191069248,-500.0,0.00041643,18]
[342873613,1732191069257,-500.0,0.00041643,18]
[342873614,1732191069266,-1997.34,0.00041643,18]
[342873615,1732191069277,-525.86,0.00041643,18]
[342873616,1732191069286,-500.0,0.00041643,18]
[342873617,1732191069295,-2082.4,0.00041643,18]
[342873618,1732191069305,-500.0,0.00041643,18]
[342873619,1732191069317,-500.0,0.00041643,18]
[342873620,1732191069326,-500.0,0.00041643,18]
[342873621,1732191069334,-500.0,0.00041643,18]
[342873622,1732191069343,-748.23,0.00041643,18]
[342873623,1732191069356,-567.85,0.00041643,18]
[342873624,1732191069366,-1201.09,0.00041643,18]
[342873625,1732191069375,-1451.38,0.00041643,18]
[342873626,1732191069386,-500.0,0.00041643,18]
[342873627,1732191069395,-844.36,0.00041643,18]
[342873628,1732191069404,-669.04,0.00041643,18]
[342873629,1732191069413,-500.0,0.00041643,18]
[342873630,1732191069422,-746.58,0.00041643,18]
[342873631,1732191069432,-1131.59,0.00041643,18]
[342873632,1732191069441,-500.0,0.00041643,18]
[342873633,1732191069450,-1126.24,0.00041643,18]
[342873634,1732191069459,-500.0,0.00041643,18]
[342873635,1732191069468,-500.0,0.00041643,18]
[342873636,1732191069477,-500.0,0.00041643,18]
[342873637,1732191069486,-988.46,0.00041643,18]
[342873638,1732191069495,-2926.76,0.00041643,18]
[342873639,1732191069504,-500.0,0.00041643,18]
[342873640,1732191069513,-1364.86,0.00041643,18]
[342873641,1732191069522,-500.0,0.00041643,18]
[342873642,1732191069531,-500.0,0.00041643,18]
[342873643,1732191069540,-585.44,0.00041643,18]
[342873644,1732191069549,-556.38,0.00041643,18]
[342873645,1732191069558,-500.0,0.00041643,18]
[342873646,1732191069567,-500.0,0.00041643,18]
[342873647,1732191069577,-500.0,0.00041643,18]
[342873648,1732191069586,-695.3,0.00041643,18]
[342873649,1732191069595,-500.0,0.00041643,18]
[342873650,1732191069610,-500.0,0.00041643,18]
[342873651,1732191069619,-987.56,0.00041643,18]
[342873652,1732191069630,-500.0,0.00041643,18]
[342873653,1732191069640,-500.0,0.00041643,18]
[342873654,1732191069649,-1546.54,0.00041643,18]
[342873655,1732191069660,-500.0,0.00041643,18]
[342873656,1732191069671,-623.98,0.00041643,18]
[342873657,1732191069681,-612.8,0.00041643,18]
[342873658,1732191069691,-500.0,0.00041643,18]
[342873659,1732191069700,-500.0,0.00041643,18]
[342873660,1732191069710,-1548.56,0.00041643,18]
[342873661,1732191069719,-1142.59,0.00041643,18]
[342873662,1732191069730,-578.83,0.00041643,18]
[342873663,1732191069741,-842.15,0.00041643,18]
[342873664,1732191069751,-500.0,0.00041643,18]
[342873665,1732191069762,-993.62,0.00041643,18]
[342873666,1732191069772,-394.80275839,0.00041643,18]
[342873667,1732191069782,-1194.62,0.00041643,18]
[342873668,1732191069792,-996.33,0.00041643,18]
[342873669,1732191069802,-809.74,0.00041643,18]
[342873670,1732191069812,-2170.2,0.00041643,18]
[342873671,1732191069822,-1267.61,0.00041643,18]
[342873672,1732191069832,-500.0,0.00041643,18]
[342873673,1732191069841,-500.0,0.00041643,18]
[342873674,1732191069853,-950.37,0.00041643,18]
[342873675,1732191069863,-500.0,0.00041643,18]
[342873676,1732191069873,-1491.45,0.00041643,18]
[342873677,1732191069883,-711.7,0.00041643,18]
[342873678,1732191069893,-500.0,0.00041643,18]
[342873679,1732191069904,-500.0,0.00041643,18]
[342873680,1732191069914,-500.0,0.00041643,18]
[342873681,1732191069924,-500.0,0.00041643,18]
[342873682,1732191069934,-2151.95,0.00041643,18]
[342873683,1732191069944,-500.0,0.00041643,18]
[342873684,1732191069955,-857.13,0.00041643,18]
[342873685,1732191069965,-500.0,0.00041643,18]
[342873686,1732191069975,-500.0,0.00041643,18]
[342873687,1732191069985,-760.08,0.00041643,18]
[342873688,1732191069995,-500.0,0.00041643,18]
[342873689,1732191070005,-840.78,0.00041643,18]
[342873690,1732191070015,-2024.7,0.00041643,18]
[342873691,1732191070025,-732.35,0.00041643,18]
[342873692,1732191070035,-1954.49,0.00041643,18]
[342873693,1732191070044,-500.0,0.00041643,18]
[342873694,1732191070054,-500.0,0.00041643,18]
[342873695,1732191070064,-1679.88,0.00041643,18]
[342873696,1732191070074,-500.0,0.00041643,18]
[342873697,1732191070084,-500.0,0.00041643,18]
[342873698,1732191070094,-1482.57,0.00041643,18]
[342873699,1732191070107,-500.0,0.00041643,18]
[342873700,1732191070116,-612.26,0.00041643,18]
[342873701,1732191070126,-500.0,0.00041643,18]
[342873702,1732191070135,-2132.94,0.00041643,18]
[342873703,1732191070145,-500.0,0.00041643,18]
[342873704,1732191070155,-500.0,0.00041643,18]
[342873705,1732191070164,-500.0,0.00041643,18]
[342873706,1732191070173,-500.0,0.00041643,18]
[342873707,1732191070183,-500.0,0.00041643,18]
[342873708,1732191070193,-500.0,0.00041643,18]
[342873709,1732191070202,-527.33,0.00041643,18]
[342873710,1732191070212,-1582.41,0.00041643,18]
[342873711,1732191070222,-1429.66,0.00041643,18]
[342873712,1732191070231,-500.0,0.00041643,18]
[342873713,1732191070240,-642.05,0.00041643,18]
[342873714,1732191070249,-781.1,0.00041643,18]
[342873715,1732191070258,-500.0,0.00041643,18]
[342873716,1732191070268,-373.01725864,0.00041643,18]
[342873717,1732191070280,-1304.19,0.00041643,18]
[342873718,1732191070289,-500.0,0.00041643,18]
[342873719,1732191070298,-500.0,0.00041643,18]
[342873720,1732191070308,-582.68,0.00041643,18]
[342873721,1732191070320,-500.0,0.00041643,18]
[342873722,1732191070331,-500.0,0.00041643,18]
[342873723,1732191070340,-500.0,0.00041643,18]
[342873724,1732191070351,-500.0,0.00041643,18]
[342873725,1732191070361,-500.0,0.00041643,18]
[342873726,1732191070371,-644.75,0.00041643,18]
[342873727,1732191070385,-500.0,0.00041643,18]
[342873728,1732191070395,-500.0,0.00041643,18]
[342873729,1732191070405,-500.0,0.00041643,18]
[342873730,1732191070415,-500.0,0.00041643,18]
[342873731,1732191070425,-858.51,0.00041643,18]
[342873732,1732191070434,-2327.14,0.00041643,18]
[342873733,1732191070444,-511.08,0.00041643,18]
[342873734,1732191070453,-500.0,0.00041643,18]
[342873735,1732191070463,-512.91,0.00041643,18]
[342873736,1732191070472,-248.52196128,0.00041643,18]
[342873737,1732191070482,-2341.5,0.00041643,18]
[342873738,1732191070491,-500.0,0.00041643,18]
[342873739,1732191070501,-500.0,0.00041643,18]
[342873740,1732191070510,-500.0,0.00041643,18]
[342873741,1732191070520,-500.0,0.00041643,18]
[342873742,1732191070529,-2167.83,0.00041643,18]
[342873743,1732191070539,-500.0,0.00041643,18]
[342873744,1732191070549,-500.0,0.00041643,18]
[342873745,1732191070558,-2371.56,0.00041643,18]
[342873746,1732191070568,-500.0,0.00041643,18]
[342873747,1732191070577,-500.0,0.00041643,18]
[342873748,1732191070587,-850.00000001,0.00041643,120]
[342873749,1732191070597,-500.0,0.00041643,18]
[342873750,1732191070610,-500.0,0.00041643,18]
[342873751,1732191070620,-500.0,0.00041643,18]
[342873752,1732191070629,-500.0,0.00041643,18]
[342873753,1732191070640,-668.19,0.00041643,18]
[342873754,1732191070650,-1117.68,0.00041643,18]
[342873755,1732191070660,-500.0,0.00041643,18]
[342873756,1732191070670,-500.0,0.00041643,18]
[342873757,1732191070679,-517.30199464,0.00041643,18]
[342873758,1732191070689,-500.0,0.00041643,18]
[342873759,1732191070699,-2495.74,0.00041643,18]
[342873760,1732191070708,-500.0,0.00041643,18]
[342873761,1732191070718,-582.47,0.00041643,18]
[342873762,1732191070727,-500.0,0.00041643,18]
[342873763,1732191070736,-854.22,0.00041643,18]
[342873764,1732191070746,-500.0,0.00041643,18]
[342873765,1732191070756,-1092.79,0.00041643,120]
[342873766,1732191070766,-1757.26,0.00041643,18]
[342873767,1732191070775,-500.0,0.00041643,18]
[342873768,1732191070785,-714.96,0.00041643,18]
[342873769,1732191070796,-500.0,0.00041643,18]
[342873770,1732191070809,-500.0,0.00041643,18]
[342873771,1732191070819,-737.6,0.00041643,18]
[342873772,1732191070828,-500.0,0.00041643,18]
[342873773,1732191070837,-500.0,0.00041643,18]
[342873774,1732191070944,-500.0,0.00041643,18]
[342873775,1732191070954,-500.0,0.00041643,18]
[342873776,1732191070963,-1909.61,0.00041643,18]
[342873777,1732191070972,-1033.27,0.00041643,18]
[342873778,1732191070982,-611.08,0.00041643,18]
[342873779,1732191070992,-500.0,0.00041643,18]
[342873780,1732191071001,-2924.54,0.00041643,18]
[342873781,1732191071011,-500.0,0.00041643,18]
[342873782,1732191071020,-1077.99,0.00041643,18]
[342873783,1732191071029,-500.0,0.00041643,18]
[342873784,1732191071039,-500.0,0.00041643,18]
[342873785,1732191071048,-1004.0,0.00041643,18]
[342873786,1732191071057,-500.0,0.00041643,18]
[342873787,1732191071066,-500.0,0.00041643,18]
[342873788,1732191071075,-216.97318379,0.00041643,18]
[342873789,1732191071085,-500.0,0.00041643,18]
[342873790,1732191071094,-500.0,0.00041643,18]
[342873791,1732191071105,-1135.66,0.00041643,18]
[342873792,1732191071115,-500.0,0.00041643,18]
[342873793,1732191071124,-500.0,0.00041643,18]
[342873794,1732191071133,-520.7150123,0.00041643,18]
[342873795,1732191071142,-541.47,0.00041643,18]
[342873796,1732191071152,-1647.02,0.00041643,18]
[342873797,1732191071161,-982.98,0.00041643,18]
[342873798,1732191071170,-1394.23,0.00041643,18]
[342873799,1732191071179,-546.45,0.00041643,18]
[342873800,1732191071189,-500.0,0.00041643,18]
[342873801,1732191071198,-500.0,0.00041643,18]
[342873802,1732191071208,-500.0,0.00041643,18]
[342873803,1732191071217,-1315.62,0.00041643,18]
[342873804,1732191071226,-1570.7,0.00041643,18]
[342873805,1732191071235,-500.0,0.00041643,18]
[342873806,1732191071245,-500.0,0.00041643,18]
[342873807,1732191071255,-500.0,0.00041643,18]
[342873808,1732191071264,-500.0,0.00041643,18]
[342873809,1732191071274,-500.0,0.00041643,18]
[342873810,1732191071288,-755.11,0.00041643,18]
[342873811,1732191071297,-500.0,0.00041643,18]
[342873812,1732191071306,-500.0,0.00041643,18]
[342873813,1732191071316,-500.0,0.00041643,18]
[342873814,1732191071326,-577.0,0.00041643,18]
[342873815,1732191071336,-1286.15,0.00041643,18]
[342873816,1732191071345,-566.81,0.00041643,18]
[342873817,1732191071356,-728.32,0.00041643,18]
[342873818,1732191071365,-500.0,0.00041643,18]
[342873819,1732191071375,-1094.08,0.00041643,18]
[342873820,1732191071384,-1444.78,0.00041643,18]
[342873821,1732191071394,-500.0,0.00041643,18]
[342873822,1732191071403,-500.0,0.00041643,18]
[342873823,1732191071413,-2180.36,0.00041643,18]
[342873824,1732191071422,-500.0,0.00041643,18]
[342873825,1732191071431,-694.12,0.00041643,18]
[342873826,1732191071440,-500.0,0.00041643,18]
[342873827,1732191071449,-915.17,0.00041643,18]
[342873828,1732191071459,-1835.94,0.00041643,18]
[342873829,1732191071467,-935.76,0.00041643,18]
[342873830,1732191071477,-500.0,0.00041643,18]
[342873831,1732191071486,-500.0,0.00041643,18]
[342873832,1732191071496,-715.45,0.00041643,18]
[342873833,1732191071505,-500.0,0.00041643,18]
[342873834,1732191071514,-1241.38,0.00041643,18]
[342873835,1732191071523,-500.0,0.00041643,18]
[342873836,1732191071533,-500.0,0.00041643,18]
[342873837,1732191071542,-500.0,0.00041643,18]
[342873838,1732191071551,-500.0,0.00041643,18]
[342873839,1732191071561,-2704.76,0.00041643,18]
[342873840,1732191071570,-500.0,0.00041643,18]
[342873841,1732191071579,-500.0,0.00041643,18]
[342873842,1732191071588,-1470.7,0.00041643,18]
[342873843,1732191071597,-1514.14,0.00041643,18]
[342873844,1732191071610,-655.67,0.00041643,18]
[342873845,1732191071619,-500.0,0.00041643,18]
[342873846,1732191071628,-1219.44,0.00041643,18]
[342873847,1732191071637,-880.66,0.00041643,18]
[342873848,1732191071647,-502.63249,0.00041643,18]
[342873849,1732191071656,-1205.9,0.00041643,18]
[342873850,1732191071665,-500.0,0.00041643,18]
[342873851,1732191071674,-3764.16,0.00041643,18]
[342873852,1732191071683,-386.50982519,0.00041643,18]
[342873853,1732191071693,-2017.87,0.00041643,18]
[342873854,1732191071702,-523.01,0.00041643,18]
[342873855,1732191071711,-986.54,0.00041643,18]
[342873856,1732191071721,-500.0,0.00041643,18]
[342873857,1732191071730,-500.0,0.00041643,18]
[342873858,1732191071739,-1469.12,0.00041643,18]
[342873859,1732191071749,-500.0,0.00041643,18]
[342873860,1732191071758,-730.45,0.00041643,18]
[342873861,1732191071768,-543.39,0.00041643,18]
[342873862,1732191071777,-636.3,0.00041643,18]
[342873863,1732191071786,-580.5,0.00041643,18]
[342873864,1732191071795,-829.35,0.00041643,18]
[342873865,1732191071804,-1570.06,0.00041643,18]
[342873866,1732191071814,-500.0,0.00041643,18]
[342873867,1732191071823,-500.0,0.00041643,18]
[342873868,1732191071832,-500.0,0.00041643,18]
[342873869,1732191071841,-3907.02,0.00041643,18]
[342873870,1732191071850,-666.57,0.00041643,18]
[342873871,1732191071861,-1202.21,0.00041643,18]
[342873872,1732191071870,-500.0,0.00041643,18]
[342873873,1732191071879,-500.0,0.00041643,18]
[342873874,1732191071888,-776.04,0.00041643,18]
[342873875,1732191071897,-571.37,0.00041643,18]
[342873876,1732191071906,-528.61,0.00041643,18]
[342873877,1732191071915,-2022.73,0.00041643,18]
[342873878,1732191071924,-1065.89,0.00041643,18]
[342873879,1732191071933,-500.0,0.00041643,18]
[342873880,1732191071943,-3647.75,0.00041643,18]
[342873881,1732191071952,-500.0,0.00041643,18]
[342873882,1732191071962,-500.0,0.00041643,18]
[342873883,1732191071971,-500.0,0.00041643,18]
[342873884,1732191071980,-831.07,0.00041643,18]
[342873885,1732191071990,-500.0,0.00041643,18]
[342873886,1732191071999,-500.0,0.00041643,18]
[342873887,1732191072008,-1318.95,0.00041643,18]
[342873888,1732191072017,-500.0,0.00041643,18]
[342873889,1732191072026,-500.0,0.00041643,18]
[342873890,1732191072036,-637.04,0.00041643,18]
[342873891,1732191072045,-500.0,0.00041643,18]
[342873892,1732191072054,-514.31,0.00041643,18]
[342873893,1732191072064,-534.75,0.00041643,18]
[342873894,1732191072073,-500.0,0.00041643,18]
[342873895,1732191072083,-500.0,0.00041643,18]
[342873896,1732191072093,-500.0,0.00041643,18]
[342873897,1732191072103,-856.19,0.00041643,18]
[342873898,1732191072112,-683.73,0.00041643,18]
[342873899,1732191072122,-817.02,0.00041643,18]
[342873900,1732191072131,-500.0,0.00041643,18]
[342873901,1732191072140,-401.05727379,0.00041643,18]
[342873902,1732191072149,-580.89,0.00041643,18]
[342873903,1732191072158,-795.45,0.00041643,18]
[342873904,1732191072167,-1756.0,0.00041643,18]
[342873905,1732191072177,-500.0,0.00041643,18]
[342873906,1732191072187,-500.0,0.00041643,18]
[342873907,1732191072196,-620.67,0.00041643,18]
[342873908,1732191072205,-944.31,0.00041643,18]
[342873909,1732191072214,-500.0,0.00041643,18]
[342873910,1732191072223,-500.0,0.00041643,18]
[342873911,1732191072231,-1408.81,0.00041643,18]
[342873912,1732191072240,-500.0,0.00041643,18]
[342873913,1732191072249,-1371.35,0.00041643,18]